bitfinex/quotes_BTCUSD_20250110
["timestamp","ask_amount","ask_price","bid_price","bid_amount"]
[1736532632386,0.15,95753.0,95750.0,0.208877]
[1736532632596,0.15014809,95753.0,95749.0,0.023]
[1736532633260,0.00014809,95753.0,95749.0,0.023]
[1736532633816,0.00014809,95753.0,95751.0,0.023]
[1736532633817,0.00114809,95753.0,95751.0,0.023]
[1736532634043,0.00014809,95753.0,95752.0,0.33617176]
[1736532635319,0.00014809,95753.0,95752.0,0.12729976]
[1736532635519,0.00014809,95753.0,95752.0,1.63129976]
[1736532635744,0.00014809,95753.0,95752.0,0.004]
[1736532636150,0.00114809,95753.0,95752.0,0.004]
[1736532636552,0.31312036,95753.0,95752.0,0.004]
[1736532636745,0.208872,95752.0,95751.0,0.009]
[1736532636954,0.25429976,95752.0,95730.0,0.13544148]
[1736532637227,0.208909,95736.0,95730.0,0.13544148]
[1736532637427,0.2089,95740.0,95730.0,0.13544148]
[1736532637628,0.208903,95738.0,95722.0,1.5]
[1736532637841,0.0007852,95737.0,95722.0,1.5]
[1736532638011,0.20892,95731.0,95722.0,1.5]
[1736532638725,0.208901,95739.0,95723.0,0.208936]
[1736532638974,0.20886,95758.0,95724.0,0.12729976]
[1736532639136,0.1,95763.0,95740.0,0.29116201]
[1736532639137,0.208869,95754.0,95740.0,0.29116201]
[1736532639339,0.208864,95756.0,95741.0,0.231896]
[1736532639597,0.0007852,95755.0,95741.0,0.023]
[1736532639797,0.0007852,95752.0,95730.0,0.50008201]
[1736532640003,0.208905,95738.0,95722.0,0.002]
[1736532640206,0.0007852,95737.0,95727.0,0.023]
[1736532640411,0.2089,95740.0,95730.0,0.29116201]
[1736532640708,0.0007852,95739.0,95720.0,0.29116201]
[1736532640940,0.00114809,95753.0,95721.0,0.023]
[1736532640941,0.208919,95731.0,95721.0,0.023]
[1736532641144,0.208929,95727.0,95720.0,0.29116201]
[1736532641388,0.208915,95733.0,95721.0,0.023]
[1736532641595,0.208907,95737.0,95730.0,0.29116201]
[1736532641801,0.15,95752.0,95732.0,0.208916]
[1736532642011,0.15,95752.0,95731.0,0.023]
[1736532642012,0.208894,95743.0,95731.0,0.023]
[1736532642218,0.208649,95734.0,95731.0,0.023]
[1736532642826,0.20894,95721.0,95711.0,0.18454148]
[1736532643018,0.25,95750.0,95732.0,0.001]
[1736532643408,0.20894,95721.0,95713.0,0.023]
[1736532643650,0.208941,95721.0,95715.0,0.023]
[1736532643917,0.208916,95732.0,95731.0,0.004]
[1736532644163,0.358916,95732.0,95731.0,0.004]
[1736532644404,0.358916,95732.0,95731.0,0.00449253]
[1736532645118,0.358916,95732.0,95731.0,0.00049253]
[1736532645828,0.358916,95732.0,95731.0,0.00149253]
[1736532646060,0.208916,95732.0,95731.0,0.00149253]
[1736532646256,0.208916,95732.0,95731.0,0.00449253]
[1736532646777,0.208912,95734.0,95731.0,0.00449253]
[1736532646976,0.208905,95737.0,95732.0,0.023]
[1736532647228,0.208885,95747.0,95733.0,0.10429976]
[1736532647432,0.208893,95743.0,95734.0,1.523]
[1736532647851,0.208881,95749.0,95736.0,0.023]
[1736532648064,0.1,95762.0,95735.0,0.023]
[1736532648274,0.208896,95741.0,95734.0,0.023]
[1736532648508,0.208907,95736.0,95731.0,0.00449253]
[1736532648712,0.208903,95739.0,95732.0,0.023]
[1736532649110,0.28342774,95761.0,95733.0,1.5]
[1736532649378,0.0007852,95760.0,95733.0,1.5]
[1736532649581,0.208906,95737.0,95733.0,1.5]
[1736532649792,0.001,95736.0,95734.0,0.23191]
[1736532650015,0.001,95736.0,95735.0,0.10344446]
[1736532650221,0.001,95743.0,95735.0,0.10344446]
[1736532650222,0.001,95743.0,95735.0,0.00104446]
[1736532650427,0.001,95743.0,95731.0,0.00049253]
[1736532650632,0.001,95743.0,95732.0,0.208916]
[1736532650944,0.208894,95742.0,95733.0,0.023]
[1736532651182,0.208894,95742.0,95731.0,0.00049253]
[1736532651426,0.208903,95738.0,95731.0,0.00049253]
[1736532651894,0.208894,95742.0,95731.0,0.00049253]
[1736532651895,0.208913,95734.0,95731.0,0.00049253]
[1736532652131,0.208913,95734.0,95732.0,0.024]
[1736532652377,0.208913,95734.0,95732.0,0.001]
[1736532652615,0.208913,95734.0,95731.0,0.00049253]
[1736532652865,0.208913,95734.0,95731.0,0.00549253]
[1736532653106,0.208913,95734.0,95731.0,0.00749253]
[1736532653332,0.208905,95738.0,95731.0,0.00249253]
[1736532653568,0.208905,95738.0,95732.0,0.007]
[1736532653821,0.208905,95738.0,95731.0,0.00249253]
[1736532654279,0.208905,95738.0,95731.0,0.00049253]
[1736532654803,0.41781,95738.0,95732.0,0.003]
[1736532655050,0.208822,95776.0,95733.0,0.12729976]
[1736532655291,0.208835,95769.0,95735.0,0.023]
[1736532655532,0.208871,95753.0,95746.0,0.023]
[1736532655782,0.0765,95777.0,95747.0,0.12729976]
[1736532655995,0.0007852,95770.0,95749.0,0.023]
[1736532656204,0.0253981,95771.0,95763.0,0.023]
[1736532656382,0.0253981,95771.0,95761.0,0.023]
[1736532656626,0.004,95771.0,95765.0,0.023]
[1736532656850,0.004,95771.0,95769.0,0.023]
[1736532657052,0.004,95771.0,95770.0,0.231833]
[1736532657255,0.004,95771.0,95748.0,0.0795]
[1736532657256,0.0144883,95771.0,95748.0,0.0795]
[1736532657455,0.208842,95766.0,95748.0,0.0795]
[1736532657656,0.01471296,95771.0,95765.0,0.10429976]
[1736532657870,0.01471296,95771.0,95761.0,0.002]
[1736532658071,0.208842,95767.0,95734.0,0.13544148]
[1736532658278,0.208844,95765.0,95751.0,0.023]
[1736532658454,0.208842,95767.0,95753.0,0.023]
[1736532658663,0.208844,95765.0,95753.0,0.023]
[1736532658862,0.208844,95765.0,95753.0,0.20887]
[1736532659064,0.208843,95766.0,95764.0,0.001]
[1736532659295,0.01071296,95771.0,95764.0,0.001]
[1736532659475,0.01071296,95771.0,95770.0,0.006]
[1736532659635,0.01071296,95771.0,95766.0,0.023]
[1736532660095,0.01071296,95771.0,95760.0,0.023]
[1736532660297,0.01071296,95771.0,95753.0,0.001]
[1736532660298,0.0007852,95770.0,95753.0,0.001]
[1736532660529,0.417686,95766.0,95753.0,0.001]
[1736532660730,0.21954496,95771.0,95755.0,0.023]
[1736532660987,0.01071296,95771.0,95760.0,0.208855]
[1736532661141,0.01071296,95771.0,95764.0,0.023]
[1736532661341,0.01071296,95771.0,95762.0,0.023]
[1736532661546,0.20885,95763.0,95760.0,0.001]
[1736532661743,0.01071296,95771.0,95760.0,0.001]
[1736532661959,0.01071296,95771.0,95764.0,0.208844]
[1736532662151,0.01071296,95771.0,95765.0,0.023]
[1736532662367,0.01071296,95771.0,95761.0,0.023]
[1736532662560,0.01071296,95771.0,95765.0,0.023]
[1736532662759,0.01071296,95771.0,95770.0,0.312033]
[1736532662957,0.00014815,95771.0,95770.0,0.76633276]
[1736532663618,0.00014815,95771.0,95770.0,0.6875372]
[1736532663834,0.00014815,95771.0,95770.0,0.79785051]
[1736532664503,0.00014815,95771.0,95770.0,0.60685051]
[1736532664914,0.00014815,95771.0,95770.0,0.45685051]
[1736532665127,0.00014815,95771.0,95770.0,0.45885051]
[1736532665560,0.00014815,95771.0,95770.0,1.95685051]
[1736532665768,0.00014815,95771.0,95765.0,0.07339515]
[1736532665769,0.15,95769.0,95765.0,0.07339515]
[1736532665985,0.2,95764.0,95763.0,0.12600665]
[1736532666206,0.1,95749.0,95741.0,0.31705778]
[1736532666421,0.208894,95742.0,95741.0,0.30515778]
[1736532666625,0.56319376,95742.0,95741.0,0.28087528]
[1736532666841,0.82119952,95742.0,95741.0,0.10758295]
[1736532667045,0.82119952,95742.0,95692.0,0.0001708]
[1736532667046,0.1,95708.0,95692.0,0.0001708]
[1736532667247,0.208995,95696.0,95692.0,0.0001708]
[1736532667473,0.208957,95714.0,95696.0,0.208995]
[1736532667687,0.208957,95714.0,95697.0,0.10429976]
[1736532667904,0.1,95743.0,95697.0,0.10429976]
[1736532667905,0.01059199,95742.0,95703.0,0.1]
[1736532668139,0.01059199,95742.0,95741.0,0.208896]
[1736532668349,0.09348513,95751.0,95742.0,0.023]
[1736532668562,0.09348513,95751.0,95748.0,0.023]
[1736532668782,0.09348513,95751.0,95747.0,0.208882]
[1736532668783,0.09348513,95751.0,95749.0,0.208879]
[1736532668996,0.09348513,95776.0,95750.0,0.023]
[1736532669221,0.208836,95769.0,95752.0,0.023]
[1736532669462,0.208822,95775.0,95753.0,0.10429976]
[1736532669666,0.09348513,95776.0,95765.0,0.023]
[1736532669873,0.00023357,95782.0,95767.0,0.023]
[1736532670109,0.00023357,95782.0,95774.0,0.023]
[1736532670327,0.00023357,95782.0,95776.0,0.023]
[1736532670744,0.00023357,95782.0,95778.0,0.023]
[1736532670956,0.00023357,95782.0,95781.0,0.231809]
[1736532671171,0.00123357,95782.0,95781.0,0.34840876]
[1736532673028,0.00123357,95782.0,95781.0,0.35140876]
[1736532673180,0.00023357,95782.0,95781.0,0.14259976]
[1736532673633,0.00123357,95782.0,95781.0,0.24364359]
[1736532673892,0.00023357,95782.0,95781.0,0.24259976]
[1736532674225,0.00123357,95782.0,95781.0,0.25059976]
[1736532674707,0.00123357,95782.0,95781.0,0.24759976]
[1736532674937,0.00123357,95782.0,95781.0,0.39759976]
[1736532675151,0.00123357,95782.0,95781.0,0.40059976]
[1736532675550,0.00123357,95782.0,95781.0,1.89759976]
[1736532675930,0.00123357,95782.0,95781.0,1.90159976]
[1736532676404,0.00023357,95782.0,95781.0,1.89359976]
[1736532676612,0.00023357,95782.0,95781.0,1.90259976]
[1736532677711,8.54e-05,95793.0,95792.0,0.481785]
[1736532677915,8.54e-05,95793.0,95792.0,0.5981478]
[1736532678121,8.54e-05,95793.0,95792.0,0.3251478]
[1736532678553,8.54e-05,95793.0,95792.0,0.3481478]
[1736532678982,8.54e-05,95793.0,95792.0,0.38385899]
[1736532679393,8.54e-05,95793.0,95792.0,0.37885899]
[1736532679620,8.54e-05,95793.0,95792.0,1.87885899]
[1736532679825,8.54e-05,95793.0,95792.0,0.005]
[1736532680029,0.2088684,95793.0,95792.0,0.005]
[1736532680238,0.3588684,95793.0,95792.0,0.005]
[1736532680459,0.46316816,95793.0,95792.0,0.014]
[1736532680663,0.54037081,95793.0,95792.0,0.005]
[1736532680909,0.64037081,95793.0,95792.0,0.005]
[1736532681117,0.64037081,95793.0,95792.0,0.009]
[1736532681317,0.64037081,95793.0,95792.0,0.005]
[1736532681741,0.208842,95766.0,95752.0,0.208871]
[1736532681956,0.15,95790.0,95759.0,0.00014817]
[1736532682156,0.208844,95766.0,95759.0,0.00014817]
[1736532682565,0.208836,95769.0,95759.0,0.00014817]
[1736532682770,0.208797,95787.0,95773.0,0.208826]
[1736532682981,8.54e-05,95793.0,95779.0,0.208812]
[1736532683187,8.54e-05,95793.0,95774.0,0.10429976]
[1736532683395,0.001,95790.0,95765.0,0.208844]
[1736532683606,0.0008706,95793.0,95759.0,0.00014817]
[1736532683607,0.20884,95767.0,95759.0,0.00014817]
[1736532683809,0.208852,95762.0,95759.0,0.00014817]
[1736532684009,0.208852,95762.0,95759.0,0.00914817]
[1736532684010,0.0007852,95761.0,95759.0,0.00914817]
[1736532684220,0.208855,95760.0,95759.0,0.00014817]
[1736532684419,0.208842,95766.0,95759.0,0.00014817]
[1736532684622,0.15,95761.0,95759.0,0.00014817]
[1736532684855,0.35508496,95760.0,95759.0,0.00014817]
[1736532685092,0.56315476,95760.0,95759.0,0.00214817]
[1736532686150,0.74225476,95760.0,95759.0,0.00214817]
[1736532686385,0.208927,95728.0,95710.0,0.208963]
[1736532686607,0.208936,95724.0,95711.0,1.5]
[1736532687690,0.20892,95730.0,95712.0,0.20896]
[1736532687915,0.20429976,95727.0,95711.0,0.00049253]
[1736532688127,0.40896,95712.0,95711.0,5.3e-07]
[1736532688333,0.358995,95696.0,95695.0,0.0001708]
[1736532688556,0.358995,95696.0,95695.0,0.00031851]
[1736532688557,0.47293476,95696.0,95695.0,0.00031851]
[1736532689393,0.46329476,95696.0,95695.0,0.00022594]
[1736532689599,0.47229476,95696.0,95695.0,0.00122594]
[1736532689807,0.217995,95696.0,95695.0,0.00122594]
[1736532690029,0.23038315,95696.0,95695.0,0.00022594]
[1736532690247,0.23938315,95696.0,95695.0,0.00122594]
[1736532690454,0.23038315,95696.0,95695.0,0.00022594]
[1736532690909,0.23938315,95696.0,95695.0,0.00122594]
[1736532691126,0.009,95696.0,95695.0,0.00122594]
[1736532691371,0.0097852,95696.0,95695.0,0.00122594]
[1736532692063,0.0127852,95696.0,95695.0,0.00122594]
[1736532692273,0.003,95696.0,95695.0,0.00022594]
[1736532692483,0.208986,95700.0,95695.0,0.00022594]
[1736532692735,0.208986,95700.0,95695.0,0.00122594]
[1736532692736,0.005,95696.0,95695.0,0.00122594]
[1736532692996,0.002,95696.0,95695.0,0.00022594]
[1736532693249,0.0027852,95696.0,95695.0,0.00022594]
[1736532693661,0.0007852,95696.0,95695.0,0.00022594]
[1736532693898,0.0007852,95696.0,95695.0,0.00122594]
[1736532694108,0.05975098,95696.0,95695.0,0.00122594]
[1736532694326,0.05975098,95696.0,95695.0,0.00022594]
[1736532694536,0.31405074,95696.0,95695.0,0.00022594]
[1736532694745,0.31326554,95696.0,95695.0,0.00022594]
[1736532695568,0.31626554,95696.0,95695.0,0.00022594]
[1736532695780,0.155,95696.0,95695.0,0.00022594]
[1736532695983,0.1527852,95696.0,95695.0,0.00022594]
[1736532696191,0.10508496,95696.0,95695.0,0.00022594]
[1736532696407,0.21408496,95696.0,95695.0,0.00122594]
[1736532696634,0.42360726,95696.0,95695.0,0.00122594]
[1736532696855,0.32360726,95696.0,95695.0,0.00122594]
[1736532697297,0.33408936,95696.0,95695.0,0.00122594]
[1736532697511,0.32508936,95696.0,95695.0,0.00022594]
[1736532697719,0.153,95696.0,95695.0,0.00022594]
[1736532697936,0.208989,95699.0,95695.0,0.00022594]
[1736532698146,0.1,95719.0,95695.0,0.00022594]
[1736532698359,0.003,95696.0,95695.0,0.00022594]
[1736532698793,0.003,95696.0,95695.0,0.00222594]
[1736532699280,0.003,95696.0,95695.0,0.00022594]
[1736532699480,0.0007852,95708.0,95695.0,0.00122594]
[1736532699481,0.208971,95707.0,95695.0,0.00122594]
[1736532699680,0.0007852,95706.0,95695.0,0.00122594]
[1736532699791,0.003,95699.0,95696.0,0.208995]
[1736532700042,0.003,95699.0,95698.0,0.23199]
[1736532700239,0.003,95699.0,95698.0,0.33628976]
[1736532701078,0.208929,95726.0,95709.0,0.208965]
[1736532701294,0.0007852,95725.0,95710.0,0.10429976]
[1736532701966,0.0007852,95725.0,95711.0,0.208962]
[1736532702170,0.0757,95757.0,95731.0,0.208917]
[1736532702371,0.208855,95760.0,95736.0,0.208907]
[1736532702571,0.0007852,95759.0,95737.0,0.10429976]
[1736532702770,0.208835,95769.0,95738.0,0.02404446]
[1736532702949,0.2096232,95768.0,95747.0,0.208882]
[1736532703150,0.2096232,95768.0,95748.0,0.10429976]
[1736532703347,0.15,95767.0,95748.0,0.10429976]
[1736532703620,0.0007852,95766.0,95748.0,0.10429976]
[1736532703839,0.0007852,95766.0,95738.0,0.023]
[1736532704043,0.00049353,95768.0,95749.0,0.31317876]
[1736532704244,0.00049353,95768.0,95761.0,0.208852]
[1736532704382,0.00049353,95768.0,95761.0,0.10429976]
[1736532705330,0.00249353,95768.0,95761.0,0.10429976]
[1736532705532,0.001,95767.0,95762.0,1.5]
[1736532705880,0.00049353,95768.0,95763.0,0.52199476]
[1736532706220,0.00149353,95768.0,95764.0,0.02404415]
[1736532706404,0.00049353,95768.0,95767.0,0.23184]
[1736532706610,0.00049353,95768.0,95767.0,0.33613976]
[1736532707112,0.00049353,95768.0,95767.0,1.83613976]
[1736532707860,0.00049353,95768.0,95767.0,0.10429976]
[1736532708536,0.00049353,95768.0,95767.0,0.31313976]
[1736532708970,0.00149353,95768.0,95767.0,0.10429976]
[1736532709178,0.00149353,95768.0,95767.0,0.33718391]
[1736532709387,0.00049353,95768.0,95767.0,0.34113976]
[1736532709597,0.00149353,95768.0,95767.0,0.35013976]
[1736532709797,0.00149353,95768.0,95767.0,0.34513976]
[1736532710002,0.00149353,95768.0,95767.0,0.33613976]
[1736532710211,0.00249353,95768.0,95767.0,0.49813976]
[1736532710418,0.00249353,95768.0,95767.0,0.59813976]
[1736532711237,0.00249353,95768.0,95767.0,0.34813976]
[1736532711659,0.00249353,95768.0,95767.0,0.44513976]
[1736532712101,0.00249353,95768.0,95767.0,0.44813976]
[1736532712610,0.00249353,95768.0,95767.0,0.32513976]
[1736532712873,0.00249353,95768.0,95767.0,0.016182]
[1736532713449,0.00249353,95768.0,95767.0,0.22084]
[1736532715042,0.00249353,95768.0,95767.0,0.34813976]
[1736532715271,0.00249353,95768.0,95767.0,0.59813976]
[1736532715738,0.00249353,95768.0,95767.0,2.22323976]
[1736532716103,0.00249353,95768.0,95767.0,1.97323976]
[1736532716257,0.00249353,95768.0,95767.0,1.92823976]
[1736532716487,0.00049353,95768.0,95767.0,2.01623976]
[1736532716683,0.00049353,95768.0,95767.0,2.17523976]
[1736532716892,0.00149353,95768.0,95767.0,2.17523976]
[1736532717130,0.00149353,95768.0,95767.0,2.07523976]
[1736532717673,0.00149353,95768.0,95767.0,2.06623976]
[1736532717674,0.00049353,95768.0,95767.0,2.06623976]
[1736532717850,0.00049353,95768.0,95767.0,1.92523976]
[1736532718050,0.00149353,95768.0,95767.0,0.32213976]
[1736532718330,0.00149353,95768.0,95767.0,0.11329976]
[1736532718529,0.00149353,95768.0,95767.0,0.015]
[1736532719162,0.00049353,95768.0,95767.0,0.006]
[1736532719575,0.00149353,95768.0,95767.0,0.009]
[1736532719809,0.208867,95755.0,95739.0,0.2089]
[1736532720040,0.00049353,95768.0,95767.0,0.005]
[1736532720246,0.00149353,95768.0,95767.0,0.014]
[1736532720453,0.208848,95764.0,95744.0,0.208889]
[1736532720649,0.00049353,95768.0,95755.0,0.208865]
[1736532720855,0.00049353,95768.0,95756.0,0.10429976]
[1736532721054,0.00049353,95768.0,95767.0,0.1]
[1736532721259,0.00049353,95768.0,95767.0,0.33613976]
[1736532721456,0.00049353,95768.0,95767.0,0.31313976]
[1736532721661,0.00049353,95768.0,95715.0,0.3]
[1736532721662,0.00049353,95768.0,95753.0,0.208869]
[1736532721860,0.20933153,95768.0,95752.0,0.208871]
[1736532722089,0.00049353,95768.0,95757.0,0.208861]
[1736532722255,0.00049353,95768.0,95758.0,0.208859]
[1736532722456,0.00049353,95768.0,95767.0,0.001]
[1736532722655,0.0640556,95768.0,95744.0,0.02073759]
[1736532722879,0.0640556,95768.0,95728.0,0.041841]
[1736532722880,0.208869,95754.0,95740.0,0.208897]
[1736532723081,0.208878,95750.0,95740.0,0.10429976]
[1736532723328,0.208869,95754.0,95740.0,0.208898]
[1736532723550,0.15,95766.0,95731.0,0.00685071]
[1736532723773,0.15,95764.0,95732.0,0.10429976]
[1736532723984,0.15,95760.0,95732.0,0.10429976]
[1736532724218,0.208874,95752.0,95738.0,0.208901]
[1736532724501,0.208891,95744.0,95740.0,0.008]
[1736532724703,0.208879,95749.0,95740.0,0.008]
[1736532724909,0.208892,95744.0,95740.0,0.008]
[1736532725115,0.208894,95742.0,95740.0,0.008]
[1736532725350,0.208894,95742.0,95740.0,0.009]
[1736532725554,0.208894,95742.0,95740.0,0.001]
[1736532725755,0.0007852,95741.0,95740.0,0.001]
[1736532725910,0.208912,95734.0,95728.0,1.5]
[1736532726119,0.208912,95734.0,95715.0,0.208952]
[1736532726120,0.208913,95734.0,95715.0,0.208952]
[1736532726302,0.0789,95747.0,95703.0,0.041851]
[1736532726303,0.0007852,95733.0,95703.0,0.041851]
[1736532726524,0.208941,95721.0,95716.0,1.5]
[1736532726716,0.208941,95721.0,95704.0,0.208976]
[1736532726717,0.001,95742.0,95717.0,0.10429976]
[1736532726961,0.15,95746.0,95717.0,0.10429976]
[1736532726962,0.208918,95732.0,95717.0,0.10429976]
[1736532727173,0.208918,95731.0,95728.0,0.003]
[1736532727486,0.208923,95729.0,95728.0,0.003]
[1736532727687,0.31322276,95729.0,95728.0,0.003]
[1736532727912,0.46322276,95729.0,95728.0,0.003]
[1736532728276,0.46992586,95729.0,95728.0,0.003]
[1736532728479,0.208956,95714.0,95695.0,0.20907323]
[1736532728678,0.25429976,95729.0,95695.0,0.20907323]
[1736532728679,0.0007852,95713.0,95695.0,7.823e-05]
[1736532728843,0.208956,95714.0,95699.0,0.208986]
[1736532729045,0.208956,95714.0,95695.0,7.823e-05]
[1736532729046,0.0007852,95713.0,95695.0,7.823e-05]
[1736532729293,0.20896,95712.0,95695.0,7.823e-05]
[1736532729495,0.208964,95710.0,95695.0,7.823e-05]
[1736532729699,0.208952,95716.0,95695.0,7.823e-05]
[1736532729906,0.208962,95711.0,95709.0,0.0031708]
[1736532730115,0.208962,95711.0,95709.0,0.0001708]
[1736532730116,0.28648966,95710.0,95709.0,0.0001708]
[1736532730377,0.28570446,95710.0,95709.0,0.0001708]
[1736532730492,0.13126132,95731.0,95709.0,0.0011708]
[1736532730709,0.208958,95713.0,95709.0,0.0001708]
[1736532730919,0.208962,95711.0,95709.0,0.0001708]
[1736532731168,0.0007852,95710.0,95709.0,0.0001708]
[1736532731678,0.25508496,95710.0,95709.0,0.0001708]
[1736532731894,0.32170026,95710.0,95709.0,0.0001708]
[1736532732300,0.32170026,95710.0,95709.0,0.0021708]
[1736532732502,0.33234026,95710.0,95709.0,0.0021708]
[1736532732763,0.33234026,95710.0,95709.0,0.0001708]
[1736532732991,0.33534026,95710.0,95709.0,0.0001708]
[1736532733197,0.33434026,95710.0,95709.0,0.0001708]
[1736532733477,0.178,95756.0,95709.0,0.10447056]
[1736532733648,0.208915,95733.0,95711.0,0.208962]
[1736532733853,0.15,95730.0,95709.0,0.0021708]
[1736532734069,0.03675552,95729.0,95709.0,0.2091348]
[1736532734218,0.0007852,95729.0,95713.0,0.208956]
[1736532734418,0.20939322,95740.0,95715.0,0.208953]
[1736532734811,0.208914,95733.0,95709.0,0.0011708]
[1736532734984,0.208939,95722.0,95709.0,0.0011708]
[1736532735185,0.208942,95720.0,95709.0,0.0011708]
[1736532735398,0.208947,95718.0,95709.0,0.0011708]
[1736532735608,0.0007852,95717.0,95709.0,0.0001708]
[1736532735760,0.001,95710.0,95709.0,0.0001708]
[1736532736152,0.0007852,95717.0,95709.0,0.0001708]
[1736532736554,0.208949,95717.0,95709.0,0.0021708]
[1736532736808,0.0007852,95716.0,95709.0,0.0001708]
[1736532737028,0.25082062,95715.0,95709.0,0.0001708]
[1736532737182,0.0007852,95714.0,95709.0,0.0001708]
[1736532737384,0.001,95710.0,95709.0,0.0031708]
[1736532738413,0.0017852,95710.0,95709.0,0.0031708]
[1736532739266,0.0007852,95710.0,95709.0,0.0001708]
[1736532739562,0.0007852,95710.0,95709.0,0.0021708]
[1736532739777,0.0007852,95710.0,95709.0,0.0001708]
[1736532740176,0.04265532,95710.0,95709.0,0.0031708]
[1736532741155,0.0007852,95710.0,95709.0,0.0031708]
[1736532741363,0.208963,95711.0,95709.0,0.0031708]
[1736532741577,0.25429976,95710.0,95709.0,0.0031708]
[1736532742337,0.35429976,95710.0,95709.0,0.0001708]
[1736532742821,0.35929976,95710.0,95709.0,0.0011708]
[1736532743014,0.44481339,95710.0,95709.0,0.0001708]
[1736532743364,0.45081339,95710.0,95709.0,0.0011708]
[1736532743586,0.45381339,95710.0,95709.0,0.0011708]
[1736532743788,0.44781339,95710.0,95709.0,0.0001708]
[1736532743965,0.46245339,95710.0,95709.0,0.0011708]
[1736532744117,0.45945339,95710.0,95709.0,0.0011708]
[1736532744481,0.25729976,95710.0,95709.0,0.0001708]
[1736532744943,0.003,95710.0,95709.0,0.0001708]
[1736532745883,0.009,95710.0,95709.0,0.0011708]
[1736532746021,0.0097852,95710.0,95709.0,0.0011708]
[1736532746249,0.0007852,95710.0,95709.0,0.0001708]
[1736532746456,0.0007852,95710.0,95709.0,0.0041708]
[1736532746457,0.04265532,95710.0,95709.0,0.0041708]
[1736532746719,0.04387012,95710.0,95709.0,0.0041708]
[1736532747235,0.04387012,95710.0,95709.0,0.0001708]
[1736532747437,0.04465532,95710.0,95709.0,0.0001708]
[1736532747703,0.04465532,95710.0,95709.0,0.0041708]
[1736532747704,0.04265532,95710.0,95709.0,0.0041708]
[1736532748003,0.29695508,95710.0,95709.0,0.0041708]
[1736532748221,0.29616988,95710.0,95709.0,0.0041708]
[1736532748678,0.15,95710.0,95709.0,0.0041708]
[1736532748915,0.208963,95711.0,95709.0,0.0041708]
[1736532749124,0.208953,95715.0,95709.0,0.0001708]
[1736532749345,0.208946,95719.0,95709.0,0.0021708]
[1736532749572,0.208934,95724.0,95710.0,0.208964]
[1736532749773,0.208938,95722.0,95710.0,0.50012601]
[1736532749941,0.208934,95724.0,95710.0,0.50012601]
[1736532750151,0.208887,95746.0,95713.0,0.208958]
[1736532750301,0.208871,95753.0,95711.0,0.10429976]
[1736532750302,0.00049322,95739.0,95733.0,0.29116201]
[1736532750510,0.00049322,95739.0,95737.0,0.208904]
[1736532750744,0.00049322,95739.0,95738.0,0.10429976]
[1736532751979,0.00049322,95739.0,95738.0,0.10629976]
[1736532752603,0.00049322,95739.0,95738.0,0.10429976]
[1736532753384,0.00149322,95739.0,95738.0,0.11329976]
[1736532753607,0.00049322,95739.0,95738.0,0.10429976]
[1736532754162,0.00149322,95739.0,95738.0,0.11529976]
[1736532754268,0.00049322,95739.0,95738.0,0.10629976]
[1736532754483,0.00049322,95739.0,95738.0,0.20489976]
[1736532754688,0.00049322,95739.0,95738.0,0.21389976]
[1736532754689,0.00149322,95739.0,95738.0,0.21389976]
[1736532754892,0.00149322,95739.0,95738.0,0.21789976]
[1736532755318,0.00149322,95739.0,95738.0,0.21389976]
[1736532755535,0.00149322,95739.0,95738.0,1.69089976]
[1736532755742,0.00149322,95739.0,95738.0,0.11729976]
[1736532755920,0.00049322,95739.0,95738.0,0.13234419]
[1736532756116,0.00049322,95739.0,95738.0,1.63234419]
[1736532756345,0.00149322,95739.0,95738.0,1.64029976]
[1736532756544,0.00049322,95739.0,95738.0,1.63129976]
[1736532756957,0.00149322,95739.0,95738.0,1.64029976]
[1736532757311,0.00049322,95739.0,95738.0,1.62729976]
[1736532757506,0.00049322,95739.0,95738.0,1.63229976]
[1736532758075,0.00149322,95739.0,95738.0,1.64129976]
[1736532758476,0.00149322,95739.0,95738.0,1.63629976]
[1736532758683,0.00149322,95739.0,95738.0,1.61329976]
[1736532758888,0.00149322,95739.0,95738.0,1.61929976]
[1736532759234,0.00149322,95739.0,95738.0,0.14229976]
[1736532759438,0.00049322,95739.0,95738.0,0.13434405]
[1736532759643,0.00049322,95739.0,95738.0,1.63434405]
[1736532759856,0.00149322,95739.0,95738.0,1.64229976]
[1736532760075,0.00049322,95739.0,95738.0,1.63329976]
[1736532760291,0.00049322,95739.0,95738.0,1.62729976]
[1736532760504,0.00149322,95739.0,95738.0,1.63629976]
[1736532760745,0.00049322,95739.0,95738.0,1.63229976]
[1736532760958,0.00149322,95739.0,95738.0,0.014]
[1736532761311,0.00049322,95739.0,95738.0,1.60429976]
[1736532761779,0.00049322,95739.0,95738.0,1.60829976]
[1736532762272,0.00049322,95739.0,95738.0,1.60429976]
[1736532762707,0.00149322,95739.0,95738.0,1.61329976]
[1736532763112,0.00049322,95739.0,95738.0,1.60429976]
[1736532763342,0.00149322,95739.0,95738.0,1.509]
[1736532763556,0.00149322,95739.0,95735.0,0.00677037]
[1736532763710,0.00049322,95739.0,95738.0,0.12729976]
[1736532763909,0.00149322,95739.0,95738.0,0.13529976]
[1736532764104,0.00149322,95739.0,95738.0,0.13829976]
[1736532764355,0.00049322,95739.0,95738.0,0.13134408]
[1736532764571,0.00149322,95739.0,95738.0,0.13934408]
[1736532764733,0.00149322,95739.0,95738.0,0.14598408]
[1736532764951,0.00076,95768.0,95748.0,0.1]
[1736532765159,0.00090795,95768.0,95744.0,0.20889]
[1736532765361,0.208852,95762.0,95740.0,0.18862261]
[1736532765566,0.0007852,95761.0,95738.0,0.008]
[1736532765821,0.0007852,95761.0,95739.0,0.10429976]
[1736532766013,0.0007852,95761.0,95738.0,0.008]
[1736532766014,0.00090795,95768.0,95767.0,0.20884]
[1736532766169,0.00090795,95768.0,95767.0,0.31313976]
[1736532766367,0.00090795,95768.0,95767.0,1.81313976]
[1736532768399,0.00090795,95768.0,95767.0,1.81513976]
[1736532768785,0.00090795,95768.0,95767.0,0.002]
[1736532769207,0.00090795,95768.0,95767.0,1.6393438]
[1736532769422,0.00190795,95768.0,95767.0,1.89490221]
[1736532769636,0.00190795,95768.0,95767.0,2.06619976]
[1736532769892,0.00090795,95768.0,95767.0,2.05719976]